fUSD/lending_fUSD_20240212
["ID","MTS","AMOUNT","RATE_DAILY","PERIOD"]
[313883330,1707769870064,-224.913742,0.0003315,2]
[313883331,1707769870073,-500.0,0.0003315,2]
[313883332,1707769870083,-1028.39,0.0003315,2]
[313883333,1707769870092,-735.16,0.0003315,2]
[313883334,1707769870101,-500.0,0.0003315,2]
[313883335,1707769870110,-500.0,0.0003315,2]
[313883336,1707769870119,-224.913744,0.0003315,2]
[313883337,1707769870128,-1049.27,0.0003315,2]
[313883338,1707769870137,-4338.57,0.0003315,2]
[313883339,1707769870146,-500.0,0.0003315,2]
[313883340,1707769870155,-500.0,0.0003315,2]
[313883341,1707769870164,-559.87,0.0003315,2]
[313883342,1707769870174,-2013.56,0.0003315,2]
[313883343,1707769870183,-500.0,0.0003315,2]
[313883344,1707769870192,-500.0,0.0003315,2]
[313883345,1707769870201,-500.0,0.0003315,2]
[313883346,1707769870211,-500.0,0.0003315,2]
[313883347,1707769870220,-500.0,0.0003315,2]
[313883348,1707769870229,-1012.67,0.0003315,2]
[313883349,1707769870238,-500.0,0.0003315,2]
[313883350,1707769870247,-1445.06,0.0003315,2]
[313883351,1707769870257,-196.670595,0.0003315,7]
[313883352,1707769870266,-500.0,0.0003315,2]
[313883353,1707769870275,-686.158593,0.0003315,7]
[313883354,1707769870285,-500.0,0.0003315,2]
[313883355,1707769870294,-500.0,0.0003315,2]
[313883356,1707769870303,-1677.14,0.0003315,2]
[313883357,1707769870312,-196.67059528,0.0003315,7]
[313883358,1707769870321,-500.0,0.0003315,2]
[313883359,1707769870330,-686.158589,0.0003315,7]
[313883360,1707769870339,-500.0,0.0003315,2]
[313883361,1707769870348,-500.0,0.0003315,2]
[313883362,1707769870358,-2701.15428,0.0003315,7]
[313883363,1707769870369,-951.75,0.0003315,2]
[313883364,1707769870378,-2701.154288,0.0003315,7]
[313883365,1707769870387,-500.0,0.0003315,2]
[313883366,1707769870397,-151.0,0.0003315,7]
[313883367,1707769870407,-151.0,0.0003315,7]
[313883368,1707769870417,-500.0,0.0003315,2]
[313883369,1707769870426,-1575.25,0.0003315,2]
[313883370,1707769870436,-500.0,0.0003315,2]
[313883371,1707769870445,-1311.14,0.0003315,2]
[313883372,1707769870455,-1386.13,0.0003315,2]
[313883373,1707769870463,-500.0,0.0003315,2]
[313883374,1707769870474,-500.0,0.0003315,2]
[313883375,1707769870484,-500.0,0.0003315,2]
[313883376,1707769870495,-893.85,0.0003315,2]
[313883377,1707769870506,-500.0,0.0003315,2]
[313883378,1707769870516,-1280.91,0.0003315,2]
[313883379,1707769870526,-500.0,0.0003315,2]
[313883380,1707769870535,-500.0,0.0003315,2]
[313883381,1707769870546,-500.0,0.0003315,2]
[313883382,1707769870557,-7777.87,0.0003315,2]
[313883383,1707769870566,-500.0,0.0003315,2]
[313883384,1707769870577,-501.05,0.0003315,2]
[313883385,1707769870586,-502.28,0.0003315,2]
[313883386,1707769870596,-814.8,0.0003315,2]
[313883387,1707769870605,-500.0,0.0003315,2]
[313883388,1707769870614,-961.32,0.0003315,2]
[313883389,1707769870623,-500.0,0.0003315,2]
[313883390,1707769870634,-500.0,0.0003315,2]
[313883391,1707769870643,-500.0,0.0003315,2]
[313883392,1707769870652,-500.0,0.0003315,2]
[313883393,1707769870661,-500.0,0.0003315,2]
[313883394,1707769870672,-500.0,0.0003315,2]
[313883395,1707769870681,-500.0,0.0003315,2]
[313883396,1707769870691,-551.08,0.0003315,2]
[313883397,1707769870700,-500.0,0.0003315,2]
[313883398,1707769870709,-500.0,0.0003315,2]
[313883399,1707769870718,-500.0,0.0003315,2]
[313883400,1707769870728,-500.0,0.0003315,2]
[313883401,1707769870737,-812.86,0.0003315,2]
[313883402,1707769870747,-500.0,0.0003315,2]
[313883403,1707769870757,-500.0,0.0003315,2]
[313883404,1707769870767,-500.0,0.0003315,2]
[313883405,1707769870776,-512.59,0.0003315,2]
[313883406,1707769870785,-1261.01,0.0003315,2]
[313883407,1707769870795,-500.0,0.0003315,2]
[313883408,1707769870805,-500.0,0.0003315,2]
[313883409,1707769870815,-500.0,0.0003315,2]
[313883410,1707769870824,-500.0,0.0003315,2]
[313883411,1707769870835,-5713.47,0.0003315,2]
[313883412,1707769870844,-500.0,0.0003315,2]
[313883413,1707769870853,-500.0,0.0003315,2]
[313883414,1707769870862,-500.0,0.0003315,2]
[313883415,1707769870871,-500.0,0.0003315,2]
[313883416,1707769870881,-500.0,0.0003315,2]
[313883417,1707769870890,-5782.92,0.0003315,2]
[313883418,1707769870899,-500.0,0.0003315,2]
[313883419,1707769870909,-500.0,0.0003315,2]
[313883420,1707769870919,-3592.16,0.0003315,2]
[313883421,1707769870929,-500.0,0.0003315,2]
[313883422,1707769870938,-500.0,0.0003315,2]
[313883423,1707769870947,-1417.96,0.0003315,2]
[313883424,1707769870957,-500.0,0.0003315,2]
[313883425,1707769870966,-1507.74,0.0003315,2]
[313883426,1707769870975,-500.0,0.0003315,2]
[313883427,1707769870984,-500.0,0.0003315,2]
[313883428,1707769870993,-500.0,0.0003315,2]
[313883429,1707769871002,-500.0,0.0003315,2]
[313883430,1707769871012,-500.0,0.0003315,2]
[313883431,1707769871021,-500.0,0.0003315,2]
[313883432,1707769871031,-2719.11,0.0003315,2]
[313883433,1707769871040,-196.26619696,0.0003315,2]
[313883434,1707769871049,-735.15,0.0003315,2]
[313883435,1707769871058,-1563.36,0.0003315,2]
[313883436,1707769871068,-500.0,0.0003315,2]
[313883437,1707769871077,-500.0,0.0003315,2]
[313883438,1707769871087,-500.0,0.0003315,2]
[313883439,1707769871097,-500.0,0.0003315,2]
[313883440,1707769871106,-500.0,0.0003315,2]
[313883441,1707769871116,-1284.95,0.0003315,2]
[313883442,1707769871126,-953.13,0.0003315,2]
[313883443,1707769871136,-500.0,0.0003315,2]
[313883444,1707769871145,-500.0,0.0003315,2]
[313883445,1707769871156,-500.0,0.0003315,2]
[313883446,1707769871166,-500.0,0.0003315,2]
[313883447,1707769871175,-500.0,0.0003315,2]
[313883448,1707769871184,-500.0,0.0003315,2]
[313883449,1707769871194,-500.0,0.0003315,2]
[313883450,1707769871205,-705.93,0.0003315,2]
[313883451,1707769871215,-500.0,0.0003315,2]
[313883452,1707769871224,-503.01,0.0003315,2]
[313883453,1707769871234,-500.0,0.0003315,2]
[313883454,1707769871244,-500.0,0.0003315,2]
[313883455,1707769871254,-500.0,0.0003315,2]
[313883456,1707769871263,-2474.64,0.0003315,2]
[313883457,1707769871273,-500.0,0.0003315,2]
[313883458,1707769871282,-500.0,0.0003315,2]
[313883459,1707769871292,-2229.26,0.0003315,2]
[313883460,1707769871302,-500.0,0.0003315,2]
[313883461,1707769871311,-500.0,0.0003315,2]
[313883462,1707769871322,-500.0,0.0003315,2]
[313883463,1707769871331,-500.0,0.0003315,2]
[313883464,1707769871341,-500.0,0.0003315,2]
[313883465,1707769871352,-500.0,0.0003315,2]
[313883466,1707769871363,-500.0,0.0003315,2]
[313883467,1707769871373,-1798.72,0.0003315,2]
[313883468,1707769871383,-500.0,0.0003315,2]
[313883469,1707769871394,-500.0,0.0003315,2]
[313883470,1707769871404,-1299.67,0.0003315,2]
[313883471,1707769871415,-500.0,0.0003315,2]
[313883472,1707769871429,-1347.04,0.0003315,2]
[313883473,1707769871468,-500.0,0.0003315,2]
[313883474,1707769871478,-500.0,0.0003315,2]
[313883475,1707769871487,-500.0,0.0003315,2]
[313883476,1707769871496,-1180.11,0.0003315,2]
[313883477,1707769871506,-500.0,0.0003315,2]
[313883478,1707769871515,-2115.54,0.0003315,2]
[313883479,1707769871525,-513.48,0.0003315,2]
[313883480,1707769871534,-500.0,0.0003315,2]
[313883481,1707769871542,-373.62701166,0.0003315,2]
[313883482,1707769871553,-500.0,0.0003315,2]
[313883483,1707769871565,-500.0,0.0003315,2]
[313883484,1707769871574,-500.0,0.0003315,2]
[313883485,1707769871583,-500.0,0.0003315,2]
[313883486,1707769871592,-500.0,0.0003315,2]
[313883487,1707769871603,-3264.57,0.0003315,2]
[313883488,1707769871612,-3140.53,0.0003315,2]
[313883489,1707769871621,-511.99,0.0003315,2]
[313883490,1707769871630,-500.0,0.0003315,2]
[313883491,1707769871640,-500.0,0.0003315,2]
[313883492,1707769871650,-500.0,0.0003315,2]
[313883493,1707769871660,-4051.49,0.0003315,2]
[313883494,1707769871670,-500.0,0.0003315,2]
[313883495,1707769871679,-504.51507524,0.0003315,2]
[313883496,1707769871688,-500.0,0.0003315,2]
[313883497,1707769871698,-1799.2,0.0003315,2]
[313883498,1707769871707,-500.0,0.0003315,2]
[313883499,1707769871716,-202.08,0.0003315,2]
[313883500,1707769871725,-500.0,0.0003315,2]
[313883501,1707769871735,-500.0,0.0003315,2]
[313883502,1707769871744,-500.0,0.0003315,2]
[313883503,1707769871753,-500.0,0.0003315,2]
[313883504,1707769871762,-500.0,0.0003315,2]
[313883505,1707769871771,-1680.38,0.0003315,2]
[313883506,1707769871781,-500.0,0.0003315,2]
[313883507,1707769871790,-500.0,0.0003315,2]
[313883508,1707769871799,-500.0,0.0003315,2]
[313883509,1707769871809,-500.0,0.0003315,2]
[313883510,1707769871819,-500.0,0.0003315,2]
[313883511,1707769871829,-978.39,0.0003315,2]
[313883512,1707769871838,-500.0,0.0003315,2]
[313883513,1707769871848,-522.7,0.0003315,2]
[313883514,1707769871857,-500.0,0.0003315,2]
[313883515,1707769871866,-500.0,0.0003315,2]
[313883516,1707769871876,-500.0,0.0003315,2]
[313883517,1707769871885,-4240.45,0.0003315,2]
[313883518,1707769871895,-500.0,0.0003315,2]
[313883519,1707769871905,-500.0,0.0003315,2]
[313883520,1707769871916,-500.0,0.0003315,2]
[313883521,1707769871925,-500.0,0.0003315,2]
[313883522,1707769871935,-573.56,0.0003315,2]
[313883523,1707769871945,-500.0,0.0003315,2]
[313883524,1707769871955,-202.36208741,0.0003315,2]
[313883525,1707769871965,-500.0,0.0003315,2]
[313883526,1707769871974,-500.0,0.0003315,2]
[313883527,1707769871984,-2397.55,0.0003315,2]
[313883528,1707769871993,-323.55866386,0.0003315,2]
[313883529,1707769872003,-500.0,0.0003315,2]
[313883530,1707769872012,-500.0,0.0003315,2]
[313883531,1707769872021,-3239.43,0.0003315,2]
[313883532,1707769872031,-500.0,0.0003315,2]
[313883533,1707769872040,-500.0,0.0003315,2]
[313883534,1707769872050,-232.0,0.00033151,2]
[313883535,1707769872060,-200.0,0.000332,6]
[313883536,1707769872070,-200.0,0.0003329,10]
[313883537,1707769872079,-200.0,0.000333,6]
[313883538,1707769872090,-154.16,0.0003336,2]
[313883539,1707769872099,-13609.7731698,0.00033385,2]
[313883540,1707769872110,-2756.4276646,0.00033385,2]
[313883541,1707769872261,-919.9927408,0.00033385,2]
[313883542,1707769872270,-49270.9020629,0.00033401,2]
[313883543,1707769872280,-150.0,0.00033407,2]
[313883544,1707769872290,-150.0,0.00033407,2]
[313883545,1707769872299,-934.5185116,0.00033408,2]
[313883546,1707769872309,-1143.5483331,0.00033408,2]
[313883547,1707769872318,-134939.4481666,0.00033408,2]
[313883548,1707769872328,-160.0,0.00033415,3]
[313883549,1707769872338,-16000.0,0.00033415,3]
[313883550,1707769872347,-500.0,0.00033424,2]
[313883551,1707769872357,-500.0,0.00033424,2]
[313883552,1707769872366,-500.0,0.00033424,2]
[313883553,1707769872375,-500.0,0.00033424,2]
[313883554,1707769872384,-151.0,0.00033424,7]
[313883555,1707769872394,-151.0,0.00033424,7]
[313883556,1707769872404,-500.0,0.00033424,2]
[313883557,1707769872413,-500.0,0.00033424,2]
[313883558,1707769872422,-500.57,0.00033424,2]
[313883559,1707769872431,-565.06303623,0.00033424,2]
[313883560,1707769872441,-500.0,0.00033424,2]
[313883561,1707769872450,-500.0,0.00033424,2]
[313883562,1707769872461,-500.0,0.00033424,2]
[313883563,1707769872471,-500.0,0.00033424,2]
[313883564,1707769872480,-503.07811453,0.00033424,2]
[313883565,1707769872491,-500.0,0.00033424,2]
[313883566,1707769872500,-500.0,0.00033424,2]
[313883567,1707769872509,-500.0,0.00033424,2]
[313883568,1707769872519,-500.0,0.00033424,2]
[313883569,1707769872528,-500.0,0.00033424,2]
[313883570,1707769872537,-500.0,0.00033424,2]
[313883571,1707769872548,-500.0,0.00033424,2]
[313883572,1707769872559,-541.17837029,0.00033424,2]
[313883573,1707769872572,-234.21,0.00033424,2]
[313883574,1707769872581,-500.0,0.00033424,2]
[313883575,1707769872590,-500.0,0.00033424,2]
[313883576,1707769872600,-500.0,0.00033424,2]
[313883577,1707769872610,-500.0,0.00033424,2]
[313883578,1707769872619,-500.0,0.00033424,2]
[313883579,1707769872629,-500.0,0.00033424,2]
[313883580,1707769872639,-500.0,0.00033424,2]
[313883581,1707769872648,-500.0,0.00033424,2]
[313883582,1707769872658,-500.0,0.00033424,2]
[313883583,1707769872667,-500.0,0.00033424,2]
[313883584,1707769872677,-500.0,0.00033424,2]
[313883585,1707769872686,-500.0,0.00033424,2]
[313883586,1707769872695,-500.0,0.00033424,2]
[313883587,1707769872705,-500.0,0.00033424,2]
[313883588,1707769872714,-500.0,0.00033424,2]
[313883589,1707769872723,-500.0,0.00033424,2]
[313883590,1707769872733,-500.0,0.00033424,2]
[313883591,1707769872742,-500.0,0.00033424,2]
[313883592,1707769872751,-500.0,0.00033424,2]
[313883593,1707769872761,-300.71708997,0.00033424,2]
[313883594,1707769872770,-500.0,0.00033424,2]
[313883595,1707769872779,-228.27236465,0.00033424,2]
[313883596,1707769872789,-166.74792839,0.00033424,2]
[313883597,1707769872798,-500.0,0.00033424,2]
[313883598,1707769872808,-360.96459707,0.00033424,2]
[313883599,1707769872818,-500.0,0.00033424,2]
[313883600,1707769872827,-500.0,0.00033424,2]
[313883601,1707769872837,-500.0,0.00033424,20]
[313883602,1707769872846,-500.0,0.00033424,2]
[313883603,1707769872856,-500.0,0.00033424,2]
[313883604,1707769872865,-500.0,0.00033424,2]
[313883605,1707769872875,-500.0,0.00033424,2]
[313883606,1707769872884,-500.0,0.00033424,2]
[313883607,1707769872893,-500.0,0.00033424,2]
[313883608,1707769872904,-500.0,0.00033424,2]
[313883609,1707769872913,-500.0,0.00033424,2]
[313883610,1707769872922,-500.0,0.00033424,2]
[313883611,1707769872931,-500.0,0.00033424,2]
[313883612,1707769872941,-500.0,0.00033424,2]
[313883613,1707769872950,-500.0,0.00033424,2]
[313883614,1707769872960,-518.79453502,0.00033424,2]
[313883615,1707769872969,-500.0,0.00033424,2]
[313883616,1707769872978,-173.45312246,0.00033424,2]
[313883617,1707769872987,-500.0,0.00033424,2]
[313883618,1707769872998,-500.0,0.00033424,2]
[313883619,1707769873007,-500.0,0.00033424,2]
[313883620,1707769873016,-500.0,0.00033424,2]
[313883621,1707769873026,-500.0,0.00033424,2]
[313883622,1707769873035,-500.0,0.00033424,2]
[313883623,1707769873045,-177.88,0.00033424,2]
[313883624,1707769873054,-500.0,0.00033424,2]
[313883625,1707769873063,-531.981517,0.00033424,2]
[313883626,1707769873073,-160.0,0.00033424,3]
[313883627,1707769873083,-500.0,0.00033424,2]
[313883628,1707769873092,-192.30347212,0.00033424,2]
[313883629,1707769873101,-500.0,0.00033424,2]
[313883630,1707769873111,-500.0,0.00033424,2]
[313883631,1707769873120,-500.0,0.00033424,2]
[313883632,1707769873129,-508.58028326,0.00033424,2]
[313883633,1707769873139,-404.67335268,0.00033424,2]
[313883634,1707769873149,-500.0,0.00033424,2]
[313883635,1707769873160,-157.0891895,0.00033424,2]
[313883636,1707769873171,-500.0,0.00033424,2]
[313883637,1707769873180,-158.41525195,0.00033424,2]
[313883638,1707769873190,-297.61927248,0.00033424,2]
[313883639,1707769873199,-500.0,0.00033424,2]
[313883640,1707769873209,-648.87822341,0.00033424,2]
[313883641,1707769873219,-500.0,0.00033424,2]
[313883642,1707769873229,-500.0,0.00033424,2]
[313883643,1707769873239,-500.0,0.00033424,2]
[313883644,1707769873248,-500.0,0.00033424,2]
[313883645,1707769873258,-555.58562415,0.00033424,2]
[313883646,1707769873268,-500.0,0.00033424,2]
[313883647,1707769873279,-500.0,0.00033424,2]
[313883648,1707769873290,-500.0,0.00033424,2]
[313883649,1707769873300,-500.0,0.00033424,2]
[313883650,1707769873309,-500.0,0.00033424,2]
[313883651,1707769873319,-500.0,0.00033424,2]
[313883652,1707769873328,-436.5492353,0.00033424,2]
[313883653,1707769873338,-500.0,0.00033424,2]
[313883654,1707769873347,-500.0,0.00033424,2]
[313883655,1707769873357,-500.0,0.00033424,2]
[313883656,1707769873366,-181.60021694,0.00033424,2]
[313883657,1707769873375,-500.0,0.00033424,2]
[313883658,1707769873384,-500.0,0.00033424,2]
[313883659,1707769873394,-500.0,0.00033424,2]
[313883660,1707769873404,-465.09076184,0.00033424,2]
[313883661,1707769873413,-500.0,0.00033424,2]
[313883662,1707769873422,-500.0,0.00033424,2]
[313883663,1707769873432,-1000.0,0.00033424,7]
[313883664,1707769873442,-633.32606974,0.00033424,2]
[313883665,1707769873451,-500.0,0.00033424,2]
[313883666,1707769873460,-500.0,0.00033424,2]
[313883667,1707769873470,-618.22715384,0.00033424,2]
[313883668,1707769873479,-500.0,0.00033424,2]
[313883669,1707769873489,-619.1372581,0.00033424,2]
[313883670,1707769873498,-500.0,0.00033424,2]
[313883671,1707769873508,-500.0,0.00033424,2]
[313883672,1707769873518,-500.0,0.00033424,2]
[313883673,1707769873527,-500.0,0.00033424,2]
[313883674,1707769873536,-500.0,0.00033424,2]
[313883675,1707769873545,-500.0,0.00033424,2]
[313883676,1707769873559,-500.0,0.00033424,2]
[313883677,1707769873568,-173.14760004,0.00033424,2]
[313883678,1707769873578,-500.0,0.00033424,2]
[313883679,1707769873587,-239.33700589,0.00033424,2]
[313883680,1707769873598,-500.0,0.00033424,2]
[313883681,1707769873607,-500.0,0.00033424,2]
[313883682,1707769873616,-500.0,0.00033424,2]
[313883683,1707769873625,-500.0,0.00033424,2]
[313883684,1707769873637,-500.0,0.00033424,7]
[313883685,1707769873647,-500.0,0.00033424,2]
[313883686,1707769873657,-500.0,0.00033424,2]
[313883687,1707769873666,-500.0,0.00033424,2]
[313883688,1707769873675,-500.0,0.00033424,2]
[313883689,1707769873684,-500.0,0.00033424,2]
[313883690,1707769873693,-500.0,0.00033424,2]
[313883691,1707769873702,-500.0,0.00033424,2]
[313883692,1707769873711,-497.92,0.00033424,2]
[313883693,1707769873720,-500.0,0.00033424,2]
[313883694,1707769873730,-151.668956,0.00033424,7]
[313883695,1707769873739,-500.0,0.00033424,2]
[313883696,1707769873749,-500.0,0.00033424,2]
[313883697,1707769873758,-424.18670861,0.00033424,2]
[313883698,1707769873767,-500.0,0.00033424,2]
[313883699,1707769873777,-500.0,0.00033424,2]
[313883700,1707769873786,-966.32,0.00033424,2]
[313883701,1707769873796,-500.0,0.00033424,2]
[313883702,1707769873805,-500.0,0.00033424,2]
[313883703,1707769873814,-500.0,0.00033424,2]
[313883704,1707769873824,-500.0,0.00033424,2]
[313883705,1707769873833,-500.0,0.00033424,2]
[313883706,1707769873842,-500.0,0.00033424,2]
[313883707,1707769873851,-500.0,0.00033424,2]
[313883708,1707769873860,-500.0,0.00033424,2]
[313883709,1707769873870,-248.67,0.00033424,2]
[313883710,1707769873879,-184.71894828,0.00033424,2]
[313883711,1707769873888,-500.0,0.00033424,2]
[313883712,1707769873897,-500.0,0.00033424,2]
[313883713,1707769873907,-418.3759593,0.00033424,2]
[313883714,1707769873916,-500.0,0.00033424,2]
[313883715,1707769873925,-500.0,0.00033424,2]
[313883716,1707769873934,-500.0,0.00033424,2]
[313883717,1707769873943,-807.54,0.00033424,2]
[313883718,1707769873953,-500.0,0.00033424,2]
[313883719,1707769873962,-500.0,0.00033424,2]
[313883720,1707769873971,-500.0,0.00033424,2]
[313883721,1707769873980,-500.0,0.00033424,2]
[313883722,1707769873989,-500.0,0.00033424,2]
[313883723,1707769873998,-500.0,0.00033424,2]
[313883724,1707769874007,-509.91,0.00033424,2]
[313883725,1707769874016,-284.80350186,0.00033424,2]
[313883726,1707769874025,-500.0,0.00033424,2]
[313883727,1707769874034,-500.0,0.00033424,2]
[313883728,1707769874043,-500.0,0.00033424,2]
[313883729,1707769874051,-598.04,0.00033424,2]
[313883730,1707769874061,-500.0,0.00033424,2]
[313883731,1707769874070,-500.0,0.00033424,2]
[313883732,1707769874078,-500.0,0.00033424,2]
[313883733,1707769874087,-500.0,0.00033424,2]
[313883734,1707769874096,-500.0,0.00033424,2]
[313883735,1707769874105,-500.0,0.00033424,2]
[313883736,1707769874114,-500.0,0.00033424,2]
[313883737,1707769874124,-500.0,0.00033424,2]
[313883738,1707769874133,-273.47340534,0.00033424,2]
[313883739,1707769874142,-500.22,0.00033424,2]
[313883740,1707769874151,-500.0,0.00033424,2]
[313883741,1707769874160,-500.0,0.00033424,2]
[313883742,1707769874169,-500.0,0.00033424,2]
[313883743,1707769874178,-250.0,0.00033424,2]
[313883744,1707769874186,-500.0,0.00033424,2]
[313883745,1707769874195,-152.06599332,0.00033424,2]
[313883746,1707769874214,-500.0,0.00033424,2]
[313883747,1707769874225,-500.0,0.00033424,2]
[313883748,1707769874234,-500.0,0.00033424,2]
[313883749,1707769874243,-500.0,0.00033424,2]
[313883750,1707769874253,-500.0,0.00033424,2]
[313883751,1707769874262,-500.0,0.00033424,2]
[313883752,1707769874271,-580.77,0.00033424,2]
[313883753,1707769874280,-500.0,0.00033424,2]
[313883754,1707769874290,-160.2306937,0.00033424,2]
[313883755,1707769874299,-500.0,0.00033424,2]
[313883756,1707769874308,-500.0,0.00033424,2]
[313883757,1707769874317,-500.0,0.00033424,2]
[313883758,1707769874327,-500.0,0.00033424,2]
[313883759,1707769874336,-952.06,0.00033424,2]
[313883760,1707769874345,-500.0,0.00033424,2]
[313883761,1707769874354,-500.0,0.00033424,2]
[313883762,1707769874364,-500.0,0.00033424,2]
[313883763,1707769874373,-500.0,0.00033424,2]
[313883764,1707769874382,-500.0,0.00033424,2]
[313883765,1707769874392,-500.0,0.00033424,2]
[313883766,1707769874401,-500.0,0.00033424,2]
[313883767,1707769874410,-500.0,0.00033424,2]
[313883768,1707769874420,-500.0,0.00033424,2]
[313883769,1707769874429,-500.0,0.00033424,2]
[313883770,1707769874438,-500.0,0.00033424,2]
[313883771,1707769874447,-538.47,0.00033424,2]
[313883772,1707769874456,-500.0,0.00033424,2]
[313883773,1707769874466,-496.3401567,0.00033424,2]
[313883774,1707769874475,-500.0,0.00033424,2]
[313883775,1707769874484,-500.0,0.00033424,2]
[313883776,1707769874494,-500.0,0.00033424,2]
[313883777,1707769874503,-500.0,0.00033424,2]
[313883778,1707769874513,-500.0,0.00033424,2]
[313883779,1707769874523,-500.0,0.00033424,2]
[313883780,1707769874533,-1235.07,0.00033424,2]
[313883781,1707769874720,-500.0,0.00033424,2]
[313883782,1707769874729,-500.0,0.00033424,2]
[313883783,1707769874738,-500.0,0.00033424,2]
[313883784,1707769874747,-161.91077884,0.00033424,2]
[313883785,1707769874757,-16000.0,0.00033424,3]
[313883786,1707769874766,-500.0,0.00033424,2]
[313883787,1707769874775,-150.0,0.00033424,2]
[313883788,1707769874784,-500.0,0.00033424,2]
[313883789,1707769874794,-1500.0,0.00033424,5]
[313883790,1707769874803,-500.0,0.00033424,2]
[313883791,1707769874813,-500.0,0.00033424,2]
[313883792,1707769874822,-500.0,0.00033424,2]
[313883793,1707769874831,-500.0,0.00033424,2]
[313883794,1707769874840,-500.0,0.00033424,2]
[313883795,1707769874850,-500.0,0.00033424,2]
[313883796,1707769874860,-500.0,0.00033424,2]
[313883797,1707769874870,-500.0,0.00033424,2]
[313883798,1707769874881,-1000.0,0.00033424,7]
[313883799,1707769874891,-500.0,0.00033424,2]
[313883800,1707769874902,-500.0,0.00033424,2]
[313883801,1707769874913,-413.92272482,0.00033424,2]
[313883802,1707769874925,-500.0,0.00033424,2]
[313883803,1707769874935,-565.70978445,0.00033424,2]
[313883804,1707769874945,-500.0,0.00033424,2]
[313883805,1707769874954,-500.0,0.00033424,2]
[313883806,1707769874964,-500.0,0.00033424,2]
[313883807,1707769874974,-500.0,0.00033424,2]
[313883808,1707769874984,-500.0,0.00033424,2]
[313883809,1707769874993,-500.0,0.00033424,2]
[313883810,1707769875003,-500.0,0.00033424,2]
[313883811,1707769875013,-1080.75,0.00033424,2]
[313883812,1707769875024,-500.0,0.00033424,2]
[313883813,1707769875033,-500.0,0.00033424,2]
[313883814,1707769875043,-500.0,0.00033424,2]
[313883815,1707769875052,-500.0,0.00033424,2]
[313883816,1707769875061,-500.0,0.00033424,2]
[313883817,1707769875071,-728.15,0.00033424,2]
[313883818,1707769875080,-500.0,0.00033424,2]
[313883819,1707769875090,-796.14,0.00033424,2]
[313883820,1707769875099,-588.98,0.00033424,2]
[313883821,1707769875110,-500.0,0.00033424,2]
[313883822,1707769875119,-500.0,0.00033424,2]
[313883823,1707769875130,-500.0,0.00033424,2]
[313883824,1707769875141,-183.60181677,0.00033424,2]
[313883825,1707769875152,-500.0,0.00033424,2]
[313883826,1707769875163,-500.0,0.00033424,2]
[313883827,1707769875175,-5409.76,0.00033424,2]
[313883828,1707769875185,-500.0,0.00033424,2]
[313883829,1707769875194,-500.0,0.00033424,2]